[Event "ONJK FGH 1"]
[Site "Enschede, Netherlands"]
[Date "2022.08.09"]
[Round "6.3"]
[White "Heeres, Felix"]
[Black "Verwer, Cedric"]
[Result "0-1"]
[TimeControl "25min + 10sec/move"]
[WhiteElo "495"]
[BlackElo "552"]

1. e4 {[%clk 00:25:19]} e5 {[%clk 00:25:19]} {[%emt 00:00:02]} 2. Nf3 {[%clk
00:25:26]} {[%emt 00:00:02]} Nc6 {[%clk 00:25:28]} {[%emt 00:00:02]} 3. Bc4
{[%clk 00:25:34]} {[%emt 00:00:02]} Nf6 {[%clk 00:25:35]} {[%emt 00:00:02]} 4.
Nc3 {[%clk 00:25:41]} {[%emt 00:00:02]} Nxe4 {[%clk 00:25:43]} {[%emt
00:00:02]} 5. Nxe4 {[%clk 00:25:49]} {[%emt 00:00:03]} d5 {[%clk 00:25:52]}
{[%emt 00:00:02]} 6. d3 {[%clk 00:25:49]} {[%emt 00:00:09]} dxe4 {[%clk
00:25:57]} {[%emt 00:00:05]} 7. dxe4 {[%clk 00:25:57]} {[%emt 00:00:01]} Qxd1+
{[%clk 00:25:55]} {[%emt 00:00:13]} 8. Kxd1 {[%clk 00:26:03]} {[%emt 00:00:04]}
Bc5 {[%clk 00:25:59]} {[%emt 00:00:07]} 9. Ng5 {[%clk 00:26:09]} {[%emt
00:00:03]} O-O {[%clk 00:26:03]} {[%emt 00:00:06]} 10. Bd2 {[%clk 00:26:11]}
{[%emt 00:00:08]} Bxf2 {[%clk 00:26:07]} {[%emt 00:00:06]} 11. Rf1 {[%clk
00:26:18]} {[%emt 00:00:02]} Bg4+ {[%clk 00:26:11]} {[%emt 00:00:07]} 12. Kc1
{[%clk 00:26:24]} {[%emt 00:00:04]} Bh4 {[%clk 00:26:01]} {[%emt 00:00:20]} 13.
Bxf7+ {[%clk 00:26:31]} {[%emt 00:00:03]} Kh8 {[%clk 00:25:52]} {[%emt
00:00:20]} 14. h3 {[%clk 00:26:28]} {[%emt 00:00:12]} Bh5 {[%clk 00:25:57]}
{[%emt 00:00:05]} 15. b3 {[%clk 00:26:24]} {[%emt 00:00:14]} Bxg5 {[%clk
00:26:05]} {[%emt 00:00:01]} 16. Bxg5 {[%clk 00:26:28]} {[%emt 00:00:07]} Bxf7
{[%clk 00:26:11]} {[%emt 00:00:04]} 17. Kb2 {[%clk 00:26:35]} {[%emt 00:00:04]}
h6 {[%clk 00:26:17]} {[%emt 00:00:04]} 18. Bd2 {[%clk 00:26:40]} {[%emt
00:00:04]} Rad8 {[%clk 00:26:22]} {[%emt 00:00:05]} 19. Bc3 {[%clk 00:26:47]}
{[%emt 00:00:02]} Kh7 {[%clk 00:26:22]} {[%emt 00:00:11]} 20. h4 {[%clk
00:26:52]} {[%emt 00:00:05]} g5 {[%clk 00:26:26]} {[%emt 00:00:06]} 21. hxg5
{[%clk 00:27:00]} {[%emt 00:00:02]} h5 {[%clk 00:26:33]} {[%emt 00:00:04]} 22.
g4 {[%clk 00:27:06]} {[%emt 00:00:03]} hxg4 {[%clk 00:26:36]} {[%emt 00:00:07]}
23. Rh1+ {[%clk 00:27:14]} {[%emt 00:00:02]} Kg6 {[%clk 00:26:44]} {[%emt
00:00:02]} 24. Rh6+ {[%clk 00:27:05]} {[%emt 00:00:19]} Kg7 {[%clk 00:26:39]}
{[%emt 00:00:15]} 25. Rah1 {[%clk 00:27:11]} {[%emt 00:00:04]} Bg6 {[%clk
00:26:41]} {[%emt 00:00:08]} 26. Rg1 {[%clk 00:27:14]} {[%emt 00:00:08]} Bxe4
{[%clk 00:26:34]} {[%emt 00:00:17]} 27. Rxg4 {[%clk 00:27:21]} {[%emt
00:00:03]} Bf5 {[%clk 00:26:42]} {[%emt 00:00:02]} 28. Rgh4 {[%emt 00:00:28]}
Nd4 {[%clk 00:26:51]} {[%emt 00:00:05]} 29. a4 {[%clk 00:27:15]} {[%emt
00:00:15]} e4 {[%clk 00:26:51]} {[%emt 00:00:10]} 30. Ka3 {[%clk 00:27:08]}
{[%emt 00:00:16]} e3 {[%clk 00:26:55]} {[%emt 00:00:07]} 31. Bb4 {[%clk
00:26:47]} {[%emt 00:00:30]} Nxc2+ {[%clk 00:26:58]} {[%emt 00:00:08]} 32. Kb2
{[%clk 00:26:52]} {[%emt 00:00:04]} Nxb4 {[%emt 00:00:03]} 33. Rxb4 {[%clk
00:26:53]} {[%emt 00:00:07]} e2 {[%clk 00:27:14]} {[%emt 00:00:03]} 34. Rh1
{[%clk 00:26:57]} {[%emt 00:00:06]} Rd1 {[%clk 00:27:20]} {[%emt 00:00:04]} 35.
Rxd1 {[%clk 00:26:36]} {[%emt 00:00:30]} exd1=Q {[%clk 00:27:16]} {[%emt
00:00:14]} 36. Rxb7 {[%clk 00:26:39]} {[%emt 00:00:08]} Qe2+ {[%clk 00:27:17]}
{[%emt 00:00:09]} 37. Ka3 {[%clk 00:26:47]} {[%emt 00:00:02]} Qe7+ {[%clk
00:27:22]} {[%emt 00:00:06]} 38. Rb4 {[%clk 00:26:53]} {[%emt 00:00:04]} a5
{[%clk 00:27:27]} {[%emt 00:00:05]} 39. Kb2 {[%clk 00:26:44]} {[%emt 00:00:18]}
Qe5+ {[%clk 00:27:29]} {[%emt 00:00:08]} 40. Ka3 {[%clk 00:26:51]} {[%emt
00:00:03]} Qa1# {[%clk 00:27:26]} {[%emt 00:00:03]} 0-1

[Event "ONJK FGH 1"]
[Site "Enschede, Netherlands"]
[Date "2022.08.10"]
[Round "7.1"]
[White "Okita, Ryoga"]
[Black "Mousa, Besher"]
[Result "1-0"]
[TimeControl "25min + 10sec/move"]
[WhiteElo "829"]
[BlackElo "782"]

1. e4 {[%clk 00:25:18]} {[%emt 00:00:01]} e5 {[%clk 00:25:19]} {[%emt
00:00:01]} 2. Nf3 {[%emt 00:00:03]} Nc6 {[%clk 00:25:28]} 3. Bc4 {[%clk
00:25:35]} {[%emt 00:00:02]} Bc5 {[%clk 00:25:36]} {[%emt 00:00:02]} 4. d3
{[%clk 00:25:43]} {[%emt 00:00:02]} Nf6 {[%clk 00:25:42]} {[%emt 00:00:03]} 5.
Bg5 {[%clk 00:25:52]} {[%emt 00:00:02]} O-O {[%clk 00:25:49]} {[%emt 00:00:03]}
6. Nc3 {[%clk 00:26:02]} h6 {[%clk 00:25:55]} {[%emt 00:00:04]} 7. Bh4 {[%clk
00:26:11]} Be7 {[%clk 00:26:01]} {[%emt 00:00:04]} 8. O-O {[%clk 00:26:13]}
{[%emt 00:00:08]} d6 {[%clk 00:26:09]} {[%emt 00:00:01]} 9. d4 {[%clk
00:25:51]} {[%emt 00:00:33]} Be6 {[%clk 00:26:05]} {[%emt 00:00:13]} 10. d5
{[%clk 00:25:48]} {[%emt 00:00:13]} Bd7 {[%clk 00:26:05]} {[%emt 00:00:10]} 11.
dxc6 {[%clk 00:25:57]} {[%emt 00:00:02]} Bxc6 {[%clk 00:26:13]} {[%emt
00:00:02]} 12. Bxf6 {[%clk 00:25:35]} {[%emt 00:00:31]} Bxf6 {[%clk 00:26:18]}
{[%emt 00:00:05]} 13. Nd5 {[%clk 00:25:45]} b5 {[%clk 00:26:10]} {[%emt
00:00:19]} 14. Nxf6+ {[%clk 00:25:46]} {[%emt 00:00:09]} Qxf6 {[%clk 00:26:17]}
{[%emt 00:00:02]} 15. Bd5 {[%clk 00:25:54]} {[%emt 00:00:02]} Bxd5 {[%clk
00:26:19]} {[%emt 00:00:08]} 16. Qxd5 {[%clk 00:26:03]} {[%emt 00:00:02]} c5
{[%clk 00:25:25]} {[%emt 00:01:04]} 17. Rfd1 {[%clk 00:25:50]} {[%emt
00:00:23]} Rad8 {[%clk 00:25:17]} {[%emt 00:00:15]} 18. Qb7 {[%clk 00:25:57]}
{[%emt 00:00:05]} Qg6 {[%clk 00:24:51]} {[%emt 00:00:34]} 19. Qxb5 {[%clk
00:25:57]} {[%emt 00:00:13]} Rfe8 {[%clk 00:24:29]} {[%emt 00:00:30]} 20. Qa6
{[%clk 00:25:51]} {[%emt 00:00:18]} Re6 {[%clk 00:24:12]} {[%emt 00:00:25]} 21.
Qxa7 {[%clk 00:25:29]} {[%emt 00:00:33]} Rf6 {[%clk 00:23:45]} {[%emt
00:00:34]} 22. Nxe5 {[%emt 00:00:23]} dxe5 {[%clk 00:23:31]} {[%emt 00:00:06]}
23. Rxd8+ {[%clk 00:25:45]} {[%emt 00:00:01]} Kh7 {[%clk 00:23:37]} {[%emt
00:00:03]} 24. Qxc5 {[%clk 00:25:43]} {[%emt 00:00:14]} Qg5 {[%clk 00:22:21]}
{[%emt 00:01:17]} 25. Rd5 {[%emt 00:00:21]} Rg6 {[%clk 00:22:04]} {[%emt
00:00:27]} 26. g3 {[%clk 00:25:46]} {[%emt 00:00:06]} Re6 {[%clk 00:21:45]}
{[%emt 00:00:25]} 27. f4 {[%clk 00:25:54]} {[%emt 00:00:05]} Qh5 {[%clk
00:21:31]} {[%emt 00:00:19]} 28. Rxe5 {[%clk 00:26:02]} {[%emt 00:00:08]} Rxe5
{[%clk 00:21:34]} {[%emt 00:00:06]} 29. Qxe5 {[%clk 00:26:11]} {[%emt
00:00:02]} Qe2 {[%clk 00:19:26]} {[%emt 00:02:14]} 30. Qf5+ {[%clk 00:26:18]}
{[%emt 00:00:07]} Kg8 {[%clk 00:19:30]} {[%emt 00:00:03]} 31. a4 {[%clk
00:26:24]} {[%emt 00:00:06]} Qe3+ {[%clk 00:19:31]} {[%emt 00:00:06]} 32. Kf1
{[%clk 00:26:28]} {[%emt 00:00:10]} Qf3+ {[%clk 00:19:38]} {[%emt 00:00:02]} 33.
Ke1 {[%clk 00:26:37]} {[%emt 00:00:02]} Qh1+ {[%clk 00:19:45]} {[%emt
00:00:02]} 34. Kd2 {[%clk 00:26:44]} {[%emt 00:00:03]} Qxa1 {[%clk 00:19:50]}
{[%emt 00:00:05]} 35. Qb5 {[%clk 00:26:49]} {[%emt 00:00:06]} Qg1 {[%clk
00:19:44]} {[%emt 00:00:14]} 36. a5 {[%clk 00:26:58]} {[%emt 00:00:02]} Qxh2+
{[%clk 00:19:50]} {[%emt 00:00:04]} 37. Qe2 {[%clk 00:27:05]} {[%emt 00:00:04]}
Qxg3 {[%clk 00:19:55]} {[%emt 00:00:05]} 38. a6 {[%clk 00:27:14]} Qxf4+ {[%clk
00:20:01]} {[%emt 00:00:04]} 39. Qe3 {[%clk 00:27:22]} {[%emt 00:00:03]} Qd6+
{[%clk 00:20:03]} {[%emt 00:00:07]} 40. Qd3 {[%clk 00:27:31]} {[%emt 00:00:01]}
Qh2+ {[%clk 00:20:12]} {[%emt 00:00:02]} 41. Kc3 {[%clk 00:27:40]} Qc7+ {[%clk
00:20:19]} {[%emt 00:00:03]} 42. Kb3 {[%clk 00:27:48]} {[%emt 00:00:01]} Qb6+
{[%clk 00:20:27]} {[%emt 00:00:02]} 43. Ka2 {[%clk 00:27:57]} {[%emt 00:00:01]}
Qa5+ {[%clk 00:20:34]} {[%emt 00:00:04]} 44. Qa3 {[%emt 00:00:27]} Qd8 {[%clk
00:20:18]} 45. a7 {[%clk 00:28:12]} {[%emt 00:00:04]} Qa8 {[%clk 00:20:26]}
{[%emt 00:00:01]} 46. Qa6 {[%clk 00:28:14]} {[%emt 00:00:08]} h5 {[%clk
00:19:52]} {[%emt 00:00:43]} 47. Qb6 {[%clk 00:28:23]} {[%emt 00:00:02]} Qf8
{[%clk 00:19:54]} {[%emt 00:00:08]} 48. Qb8 {[%clk 00:28:31]} {[%emt 00:00:01]}
Qxb8 {[%clk 00:19:46]} {[%emt 00:00:18]} 49. axb8=Q+ {[%emt 00:00:11]} Kh7
{[%emt 00:00:07]} 50. Qh2 {[%emt 00:00:10]} Kh6 {[%clk 00:19:56]} {[%emt
00:00:04]} 51. b4 {[%clk 00:28:39]} g5 {[%clk 00:20:05]} 52. b5 {[%clk
00:28:48]} g4 {[%clk 00:20:14]} 53. b6 {[%clk 00:28:57]} h4 {[%clk 00:20:23]}
54. Qxh4+ {[%clk 00:29:06]} Kg6 {[%clk 00:20:30]} {[%emt 00:00:03]} 55. b7
{[%clk 00:29:15]} 1-0

[Event "ONJK FGH 1"]
[Site "Enschede, Netherlands"]
[Date "2022.08.10"]
[Round "7.2"]
[White "Oelmeijer, Sjoerd"]
[Black "Verwer, Cedric"]
[Result "1-0"]
[TimeControl "25min + 10sec/move"]
[WhiteElo "743"]
[BlackElo "552"]

1. d4 {[%clk 00:25:12]} {[%emt 00:00:08]} d5 {[%clk 00:25:19]} {[%emt
00:00:01]} 2. c4 {[%clk 00:25:19]} {[%emt 00:00:03]} dxc4 {[%clk 00:25:27]}
{[%emt 00:00:01]} 3. e4 {[%clk 00:25:29]} {[%emt 00:00:02]} b5 {[%clk
00:25:36]} {[%emt 00:00:01]} 4. a4 {[%clk 00:25:37]} {[%emt 00:00:02]} c6
{[%clk 00:25:44]} 5. Nc3 {[%clk 00:25:43]} {[%emt 00:00:04]} a6 {[%clk
00:25:53]} {[%emt 00:00:01]} 6. axb5 {[%clk 00:25:50]} {[%emt 00:00:03]} cxb5
{[%clk 00:26:02]} {[%emt 00:00:02]} 7. Nxb5 {[%clk 00:25:57]} {[%emt 00:00:02]}
axb5 {[%clk 00:26:11]} {[%emt 00:00:02]} 8. Rxa8 {[%clk 00:26:06]} {[%emt
00:00:01]} Bb7 {[%clk 00:26:20]} 9. Ra1 {[%clk 00:26:09]} {[%emt 00:00:06]} e6
{[%clk 00:26:29]} {[%emt 00:00:02]} 10. e5 {[%clk 00:25:58]} {[%emt 00:00:20]}
Ne7 {[%clk 00:26:20]} {[%emt 00:00:19]} 11. Be2 {[%clk 00:26:02]} {[%emt
00:00:07]} Nf5 {[%clk 00:26:28]} {[%emt 00:00:02]} 12. Nf3 {[%clk 00:26:06]}
{[%emt 00:00:06]} Bxf3 {[%clk 00:26:19]} {[%emt 00:00:18]} 13. Bxf3 {[%clk
00:26:12]} {[%emt 00:00:04]} Bb4+ {[%clk 00:26:28]} {[%emt 00:00:02]} 14. Bd2
{[%clk 00:26:06]} {[%emt 00:00:16]} Qxd4 {[%clk 00:26:30]} {[%emt 00:00:08]} 15.
Bxb4 {[%clk 00:25:56]} {[%emt 00:00:20]} Qxe5+ {[%clk 00:26:28]} {[%emt
00:00:11]} 16. Qe2 {[%clk 00:26:02]} {[%emt 00:00:05]} Qxe2+ {[%clk 00:26:26]}
{[%emt 00:00:11]} 17. Bxe2 {[%clk 00:26:10]} {[%emt 00:00:02]} Nc6 {[%emt
00:00:06]} 18. Ra8+ {[%clk 00:26:12]} {[%emt 00:00:07]} Nd8 {[%clk 00:26:38]}
{[%emt 00:00:03]} 19. Ba5 {[%clk 00:26:20]} {[%emt 00:00:02]} O-O {[%clk
00:26:43]} {[%emt 00:00:05]} 20. Rxd8 {[%clk 00:26:28]} {[%emt 00:00:03]} Rxd8
{[%clk 00:26:41]} {[%emt 00:00:11]} 21. Bxd8 {[%clk 00:26:36]} {[%emt
00:00:03]} Nd4 {[%clk 00:26:50]} 22. Bf3 {[%clk 00:26:32]} {[%emt 00:00:13]}
Nc2+ {[%clk 00:26:57]} {[%emt 00:00:03]} 23. Kd2 {[%clk 00:26:35]} {[%emt
00:00:08]} Nb4 {[%clk 00:27:05]} {[%emt 00:00:02]} 24. Ra1 {[%clk 00:26:33]}
{[%emt 00:00:11]} h6 {[%clk 00:27:10]} {[%emt 00:00:05]} 25. Ra8 {[%clk
00:26:40]} {[%emt 00:00:03]} Kh7 {[%clk 00:27:15]} {[%emt 00:00:05]} 26. Be4+
{[%clk 00:26:47]} {[%emt 00:00:03]} f5 {[%clk 00:27:24]} {[%emt 00:00:01]} 27.
Bf3 {[%clk 00:26:32]} {[%emt 00:00:26]} Nd5 {[%clk 00:27:28]} {[%emt 00:00:06]}
28. Bxd5 {[%clk 00:26:39]} {[%emt 00:00:02]} exd5 {[%clk 00:27:37]} {[%emt
00:00:02]} 29. Ra5 {[%clk 00:26:44]} {[%emt 00:00:05]} g5 {[%clk 00:27:15]}
{[%emt 00:00:32]} 30. Rxb5 {[%clk 00:26:49]} {[%emt 00:00:04]} Kg6 {[%clk
00:27:21]} {[%emt 00:00:05]} 31. Rxd5 {[%clk 00:26:56]} {[%emt 00:00:02]} h5 32.
Rc5 {[%emt 00:00:07]} g4 {[%clk 00:27:17]} {[%emt 00:00:07]} 33. Rxc4 {[%clk
00:27:04]} {[%emt 00:00:02]} Kf7 {[%clk 00:27:26]} 34. Rc5 {[%clk 00:27:11]}
{[%emt 00:00:04]} Ke6 {[%clk 00:27:35]} 35. b4 {[%clk 00:27:13]} {[%emt
00:00:08]} Kd6 {[%clk 00:27:40]} {[%emt 00:00:04]} 36. Rc1 {[%clk 00:27:19]}
{[%emt 00:00:05]} Ke5 {[%clk 00:27:47]} {[%emt 00:00:02]} 37. b5 {[%clk
00:27:28]} {[%emt 00:00:02]} f4 {[%clk 00:27:55]} 38. b6 {[%clk 00:27:37]}
{[%emt 00:00:01]} h4 {[%clk 00:28:04]} {[%emt 00:00:02]} 39. b7 {[%clk
00:27:46]} {[%emt 00:00:01]} g3 {[%clk 00:28:14]} 40. fxg3 {[%clk 00:27:50]}
{[%emt 00:00:06]} h3 {[%clk 00:28:20]} {[%emt 00:00:03]} 41. gxf4+ {[%clk
00:27:57]} {[%emt 00:00:03]} Kxf4 {[%clk 00:28:29]} {[%emt 00:00:02]} 42. b8=Q+
{[%emt 00:00:05]} Kg4 43. gxh3+ {[%clk 00:27:59]} {[%emt 00:00:03]} Kxh3 {[%clk
00:28:38]} 44. Qg3+ {[%clk 00:27:54]} {[%emt 00:00:04]} 1-0

[Event "ONJK FGH 1"]
[Site "Enschede, Netherlands"]
[Date "2022.08.10"]
[Round "7.3"]
[White "Datta, Satadru"]
[Black "De Wit, Jim"]
[Result "1-0"]
[TimeControl "25min + 10sec/move"]
[WhiteElo "786"]
[BlackElo "889"]

1. e4 {[%clk 00:25:19]} e5 {[%clk 00:25:18]} {[%emt 00:00:03]} 2. Nf3 {[%clk
00:25:25]} {[%emt 00:00:04]} Nc6 {[%clk 00:25:25]} {[%emt 00:00:03]} 3. Bc4
{[%clk 00:25:31]} {[%emt 00:00:05]} Bc5 {[%clk 00:25:25]} {[%emt 00:00:10]} 4.
Nc3 {[%emt 00:00:09]} Nf6 {[%clk 00:25:28]} {[%emt 00:00:04]} 5. d3 {[%clk
00:25:22]} {[%emt 00:00:22]} d6 {[%clk 00:25:36]} {[%emt 00:00:02]} 6. Bg5
{[%clk 00:25:22]} {[%emt 00:00:11]} O-O {[%clk 00:25:41]} {[%emt 00:00:05]} 7.
Nd5 {[%clk 00:25:20]} {[%emt 00:00:12]} Kh8 {[%clk 00:25:34]} {[%emt 00:00:17]}
8. Nxf6 {[%clk 00:25:09]} {[%emt 00:00:21]} gxf6 {[%clk 00:25:41]} {[%emt
00:00:03]} 9. Bh6 {[%clk 00:25:15]} {[%emt 00:00:04]} Re8 {[%clk 00:25:36]}
{[%emt 00:00:14]} 10. Bxf7 {[%clk 00:24:40]} {[%emt 00:00:46]} Re7 {[%clk
00:25:41]} {[%emt 00:00:03]} 11. Bb3 {[%clk 00:24:46]} {[%emt 00:00:06]} Bg4
{[%clk 00:25:42]} {[%emt 00:00:07]} 12. c3 {[%clk 00:24:42]} {[%emt 00:00:14]}
Qe8 {[%clk 00:25:38]} {[%emt 00:00:15]} 13. O-O {[%clk 00:24:32]} {[%emt
00:00:21]} Qh5 {[%clk 00:25:11]} {[%emt 00:00:34]} 14. Bd2 {[%clk 00:24:26]}
{[%emt 00:00:19]} Bxf3 {[%clk 00:25:05]} {[%emt 00:00:14]} 15. gxf3 {[%clk
00:24:16]} {[%emt 00:00:21]} Rg7+ {[%clk 00:24:45]} {[%emt 00:00:29]} 16. Kh1
{[%clk 00:24:07]} {[%emt 00:00:20]} Qh3 {[%clk 00:24:35]} {[%emt 00:00:18]} 17.
Rg1 {[%clk 00:23:30]} {[%emt 00:00:49]} Rxg1+ {[%clk 00:24:24]} {[%emt
00:00:19]} 18. Qxg1 {[%clk 00:23:29]} {[%emt 00:00:12]} Na5 {[%clk 00:23:56]}
{[%emt 00:00:38]} 19. Qf1 {[%clk 00:22:57]} {[%emt 00:00:44]} Qxf1+ {[%clk
00:23:40]} {[%emt 00:00:25]} 20. Rxf1 {[%clk 00:22:58]} {[%emt 00:00:09]} Nxb3
{[%clk 00:23:06]} {[%emt 00:00:45]} 21. axb3 {[%clk 00:22:57]} {[%emt
00:00:10]} a6 {[%clk 00:23:14]} {[%emt 00:00:02]} 22. b4 {[%clk 00:21:46]}
{[%emt 00:01:22]} Ba7 {[%clk 00:23:12]} {[%emt 00:00:11]} 23. c4 {[%clk
00:20:43]} {[%emt 00:01:14]} Re8 {[%clk 00:22:48]} {[%emt 00:00:31]} 24. Be3
{[%clk 00:20:20]} {[%emt 00:00:36]} Bxe3 {[%clk 00:22:35]} {[%emt 00:00:22]} 25.
fxe3 {[%clk 00:20:24]} {[%emt 00:00:07]} b6 {[%clk 00:22:06]} {[%emt 00:00:39]}
26. Ra1 {[%clk 00:20:03]} {[%emt 00:00:29]} Ra8 {[%clk 00:22:08]} {[%emt
00:00:09]} 27. b5 {[%clk 00:19:33]} {[%emt 00:00:41]} a5 {[%clk 00:21:37]}
{[%emt 00:00:41]} 28. b3 {[%clk 00:18:57]} {[%emt 00:00:46]} c5 {[%clk
00:21:00]} {[%emt 00:00:47]} 29. bxc6 {[%clk 00:18:20]} {[%emt 00:00:47]} Rc8
{[%clk 00:19:45]} {[%emt 00:01:25]} 30. Kg2 {[%clk 00:17:59]} {[%emt 00:00:31]}
Rxc6 {[%clk 00:19:49]} {[%emt 00:00:06]} 31. Kg3 {[%clk 00:16:49]} {[%emt
00:01:20]} Kg7 {[%clk 00:19:15]} {[%emt 00:00:44]} 32. h4 {[%clk 00:16:36]}
{[%emt 00:00:23]} Rc8 {[%clk 00:18:57]} {[%emt 00:00:28]} 33. f4 {[%clk
00:16:16]} {[%emt 00:00:31]} Rg8 {[%clk 00:18:25]} {[%emt 00:00:43]} 34. fxe5
{[%clk 00:15:57]} {[%emt 00:00:28]} fxe5 {[%clk 00:18:18]} {[%emt 00:00:17]} 35.
Rg1 {[%clk 00:15:37]} {[%emt 00:00:30]} Kf6+ {[%clk 00:17:54]} {[%emt
00:00:32]} 36. Kf2 {[%clk 00:15:38]} {[%emt 00:00:10]} Rxg1 {[%clk 00:17:09]}
{[%emt 00:00:56]} 37. Kxg1 {[%clk 00:15:44]} {[%emt 00:00:03]} Kg6 {[%clk
00:17:12]} {[%emt 00:00:08]} 38. Kg2 {[%clk 00:15:51]} {[%emt 00:00:03]} h6
{[%clk 00:16:45]} {[%emt 00:00:37]} 39. Kg3 {[%clk 00:15:49]} {[%emt 00:00:12]}
h5 {[%clk 00:16:28]} {[%emt 00:00:25]} 40. d4 {[%clk 00:15:39]} {[%emt
00:00:22]} Kf6 {[%clk 00:15:47]} {[%emt 00:00:50]} 41. Kf3 {[%clk 00:14:58]}
{[%emt 00:00:51]} Kg6 {[%clk 00:14:59]} {[%emt 00:00:56]} 42. d5 {[%clk
00:15:00]} {[%emt 00:00:11]} Kf6 {[%clk 00:14:26]} {[%emt 00:00:44]} 43. Kg3
{[%clk 00:14:40]} {[%emt 00:00:29]} Kf7 {[%clk 00:14:19]} {[%emt 00:00:15]} 44.
Kf3 {[%clk 00:14:11]} {[%emt 00:00:40]} Ke7 {[%clk 00:14:20]} {[%emt 00:00:10]}
45. Ke2 {[%clk 00:13:55]} {[%emt 00:00:25]} Kd7 {[%clk 00:14:25]} {[%emt
00:00:05]} 46. Kd3 {[%clk 00:14:01]} {[%emt 00:00:04]} Kc7 {[%clk 00:14:31]}
{[%emt 00:00:03]} 47. Kc3 {[%clk 00:14:03]} {[%emt 00:00:08]} Kb7 {[%clk
00:14:36]} {[%emt 00:00:05]} 48. b4 {[%clk 00:13:56]} {[%emt 00:00:18]} axb4+
{[%clk 00:14:41]} {[%emt 00:00:05]} 49. Kxb4 {[%clk 00:14:02]} {[%emt
00:00:04]} Ka6 {[%clk 00:14:45]} {[%emt 00:00:05]} 50. Ka4 {[%clk 00:14:08]}
{[%emt 00:00:05]} Kb7 {[%clk 00:14:37]} {[%emt 00:00:09]} 51. Kb5 {[%clk
00:14:04]} {[%emt 00:00:22]} Kc7 {[%clk 00:14:41]} {[%emt 00:00:06]} 52. Ka6
{[%clk 00:14:03]} {[%emt 00:00:12]} b5 {[%clk 00:14:30]} {[%emt 00:00:20]} 53.
cxb5 {[%clk 00:14:09]} {[%emt 00:00:03]} Kd7 {[%clk 00:14:38]} {[%emt
00:00:02]} 54. b6 {[%clk 00:14:17]} {[%emt 00:00:04]} Kc8 {[%clk 00:14:47]} 55.
Ka7 {[%clk 00:14:23]} {[%emt 00:00:04]} Kd7 {[%clk 00:14:53]} {[%emt 00:00:03]}
56. b7 {[%clk 00:14:32]} {[%emt 00:00:02]} Ke7 {[%clk 00:15:01]} {[%emt
00:00:03]} 57. b8=Q {[%clk 00:14:36]} {[%emt 00:00:04]} Kf6 {[%clk 00:15:07]}
{[%emt 00:00:04]} 58. Qxd6+ {[%clk 00:14:43]} {[%emt 00:00:03]} Kf7 {[%clk
00:15:15]} {[%emt 00:00:02]} 59. Qxe5 {[%clk 00:14:47]} {[%emt 00:00:06]} Kg6
{[%clk 00:15:23]} {[%emt 00:00:02]} 60. d6 {[%clk 00:14:55]} {[%emt 00:00:03]}
Kf7 {[%clk 00:15:32]} {[%emt 00:00:01]} 61. Qf5 {[%clk 00:15:00]} {[%emt
00:00:04]} Kg7 {[%clk 00:15:41]} {[%emt 00:00:02]} 62. Qxh5 {[%clk 00:15:08]}
{[%emt 00:00:02]} Kf6 {[%clk 00:15:48]} {[%emt 00:00:03]} 63. d7 {[%clk
00:15:10]} {[%emt 00:00:08]} Ke6 {[%clk 00:15:49]} {[%emt 00:00:05]} 64. Qh7
{[%clk 00:15:07]} {[%emt 00:00:16]} Ke5 {[%clk 00:15:54]} {[%emt 00:00:05]} 65.
Qe7# {[%clk 00:14:45]} {[%emt 00:00:18]} 1-0